fUST/lending_fUST_20250210
["ID","MTS","AMOUNT","RATE_DAILY","PERIOD"]
[352615197,1739201441195,-500.0,0.00011506,2]
[352615198,1739201441204,-500.0,0.00011506,2]
[352615199,1739201441213,-4495.76,0.00011506,2]
[352615200,1739201441223,-500.0,0.00011506,2]
[352615201,1739201441234,-1072.26,0.00011506,2]
[352615202,1739201441243,-500.0,0.00011506,2]
[352615203,1739201441252,-500.0,0.00011506,2]
[352615204,1739201441262,-500.0,0.00011506,2]
[352615205,1739201441271,-1558.47,0.00011506,2]
[352615206,1739201441280,-500.0,0.00011506,2]
[352615207,1739201441290,-322.34,0.00011506,2]
[352615208,1739201441299,-500.0,0.00011506,2]
[352615209,1739201441308,-500.0,0.00011506,2]
[352615210,1739201441318,-500.0,0.00011506,2]
[352615211,1739201441328,-565.47,0.00011506,2]
[352615212,1739201441338,-500.0,0.00011506,2]
[352615213,1739201441347,-500.0,0.00011506,2]
[352615214,1739201441356,-500.0,0.00011506,2]
[352615215,1739201441366,-500.0,0.00011506,2]
[352615216,1739201441375,-567.49,0.00011506,2]
[352615217,1739201441385,-899.18,0.00011506,2]
[352615218,1739201441394,-4405.22,0.00011506,2]
[352615219,1739201441403,-1121.87,0.00011506,2]
[352615220,1739201441412,-505.82,0.00011506,2]
[352615221,1739201441422,-550.84,0.00011506,2]
[352615222,1739201441433,-2625.37,0.00011506,2]
[352615223,1739201441442,-537.82,0.00011506,2]
[352615224,1739201441451,-1407.82,0.00011506,2]
[352615225,1739201441460,-500.0,0.00011506,2]
[352615226,1739201441469,-500.0,0.00011506,2]
[352615227,1739201441478,-500.0,0.00011506,2]
[352615228,1739201441487,-500.0,0.00011506,2]
[352615229,1739201441496,-1316.6,0.00011506,2]
[352615230,1739201441505,-486.65402621,0.00011506,2]
[352615231,1739201441514,-772.0,0.00011506,2]
[352615232,1739201441524,-500.0,0.00011506,2]
[352615233,1739201441536,-500.0,0.00011506,2]
[352615234,1739201441545,-500.0,0.00011506,2]
[352615235,1739201441554,-500.0,0.00011506,2]
[352615236,1739201441563,-500.0,0.00011506,2]
[352615237,1739201441572,-500.0,0.00011506,2]
[352615238,1739201441582,-957.85,0.00011506,2]
[352615239,1739201441591,-500.0,0.00011506,2]
[352615240,1739201441688,-237.92427409,0.00011545,2]
[352615241,1739201441697,-500.0,0.00011593,2]
[352615242,1739201441707,-500.0,0.00011593,2]
[352615243,1739201441716,-500.0,0.00011593,2]
[352615244,1739201441726,-500.0,0.00011593,2]
[352615245,1739201441735,-502.27251224,0.00011593,2]
[352615246,1739201441745,-45619.26047126,0.00011614,2]
[352615247,1739201441754,-386.01861773,0.00011619,2]
[352615248,1739201441764,-626.10567238,0.00011619,2]
[352615249,1739201441773,-500.86851527,0.00011619,2]
[352615250,1739201441782,-500.0,0.00011619,2]
[352615251,1739201441791,-500.0,0.00011619,2]
[352615252,1739201441800,-500.0,0.00011619,2]
[352615253,1739201441809,-600.01590705,0.00011619,2]
[352615254,1739201441818,-500.0,0.00011619,2]
[352615255,1739201441827,-500.0,0.00011643,2]
[352615256,1739201441836,-500.0,0.00011643,2]
[352615257,1739201441845,-504.24,0.00011643,2]
[352615258,1739201441855,-500.0,0.00011643,2]
[352615259,1739201441864,-500.0,0.00011643,2]
[352615260,1739201441874,-500.0,0.00011643,2]
[352615261,1739201441883,-500.0,0.00011643,2]
[352615262,1739201441892,-632.7,0.00011643,2]
[352615263,1739201441901,-615.91,0.00011643,2]
[352615264,1739201441910,-500.0,0.00011643,2]
[352615265,1739201441921,-500.0,0.00011643,2]
[352615266,1739201441932,-500.0,0.00011643,2]
[352615267,1739201441941,-500.0,0.00011643,2]
[352615268,1739201441950,-500.0,0.00011643,2]
[352615269,1739201441959,-10277.57,0.00011643,2]
[352615270,1739201441968,-500.0,0.00011643,2]
[352615271,1739201441977,-563.71,0.00011643,2]
[352615272,1739201441986,-512.3,0.00011643,2]
[352615273,1739201441995,-1738.59,0.00011643,2]
[352615274,1739201442004,-500.0,0.00011643,2]
[352615275,1739201442013,-500.0,0.00011643,2]
[352615276,1739201442024,-500.0,0.00011643,2]
[352615277,1739201442033,-4495.76,0.00011643,2]
[352615278,1739201442042,-500.0,0.00011643,2]
[352615279,1739201442052,-1072.26,0.00011643,2]
[352615280,1739201442061,-500.0,0.00011643,2]
[352615281,1739201442070,-500.0,0.00011643,2]
[352615282,1739201442080,-500.0,0.00011643,2]
[352615283,1739201442089,-1558.47,0.00011643,2]
[352615284,1739201442098,-500.0,0.00011643,2]
[352615285,1739201442107,-500.0,0.00011643,2]
[352615286,1739201442117,-500.0,0.00011643,2]
[352615287,1739201442126,-408.0,0.00011643,2]
[352615288,1739201442136,-565.47,0.00011643,2]
[352615289,1739201442145,-500.0,0.00011643,2]
[352615290,1739201442155,-500.0,0.00011643,2]
[352615291,1739201442164,-500.0,0.00011643,2]
[352615292,1739201442174,-506.02,0.00011643,2]
[352615293,1739201442187,-567.49,0.00011643,2]
[352615294,1739201442196,-899.18,0.00011643,2]
[352615295,1739201442205,-4405.22,0.00011643,2]
[352615296,1739201442216,-1121.87,0.00011643,2]
[352615297,1739201442233,-505.82,0.00011643,2]
[352615298,1739201442242,-550.84,0.00011643,2]
[352615299,1739201442252,-2625.37,0.00011643,2]
[352615300,1739201442261,-537.82,0.00011643,2]
[352615301,1739201442270,-1407.82,0.00011643,2]
[352615302,1739201442280,-500.0,0.00011643,2]
[352615303,1739201442290,-404.34288852,0.00011643,2]
[352615304,1739201442300,-500.0,0.00011643,2]
[352615305,1739201442309,-500.0,0.00011643,2]
[352615306,1739201442318,-1316.6,0.00011643,2]
[352615307,1739201442327,-772.0,0.00011643,2]
[352615308,1739201442336,-500.0,0.00011643,2]
[352615309,1739201442346,-500.0,0.00011643,2]
[352615310,1739201442355,-500.0,0.00011643,2]
[352615311,1739201442365,-500.0,0.00011643,2]
[352615312,1739201442375,-500.0,0.00011643,2]
[352615313,1739201442384,-500.0,0.00011643,2]
[352615314,1739201442393,-957.85,0.00011643,2]
[352615315,1739201442402,-500.0,0.00011643,2]
[352615316,1739201442411,-150.56066039,0.00011753,2]
[352615317,1739201442420,-585.45216601,0.00011753,2]
[352615318,1739201442430,-500.0,0.00011758,2]
[352615319,1739201442439,-500.0,0.00011758,2]
[352615320,1739201442448,-151.0,0.0001178,2]
[352615321,1739201442458,-151.0,0.0001178,2]
[352615322,1739201442467,-151.0,0.0001178,2]
[352615323,1739201442476,-151.0,0.0001178,2]
[352615324,1739201442485,-151.0,0.0001178,2]
[352615325,1739201442494,-151.0,0.0001178,2]
[352615326,1739201442503,-486.97998487,0.0001178,2]
[352615327,1739201442512,-500.0,0.0001178,2]
[352615328,1739201442521,-504.24,0.0001178,2]
[352615329,1739201442533,-500.0,0.0001178,2]
[352615330,1739201442542,-500.0,0.0001178,2]
[352615331,1739201442552,-526.46,0.0001178,2]
[352615332,1739201442561,-500.0,0.0001178,2]
[352615333,1739201442570,-632.7,0.0001178,2]
[352615334,1739201442579,-500.0,0.0001178,2]
[352615335,1739201442588,-500.0,0.0001178,2]
[352615336,1739201442597,-500.0,0.0001178,2]
[352615337,1739201442607,-500.0,0.0001178,2]
[352615338,1739201442615,-500.0,0.0001178,2]
[352615339,1739201442625,-10277.57,0.0001178,2]
[352615340,1739201442635,-500.0,0.0001178,2]
[352615341,1739201442644,-563.71,0.0001178,2]
[352615342,1739201442653,-512.3,0.0001178,2]
[352615343,1739201442663,-1738.59,0.0001178,2]
[352615345,1739201442672,-500.0,0.0001178,2]
[352615346,1739201442684,-500.0,0.0001178,2]
[352615347,1739201442693,-500.0,0.0001178,2]
[352615348,1739201442702,-4495.76,0.0001178,2]
[352615349,1739201442712,-535.02626426,0.0001178,2]
[352615350,1739201442721,-1072.26,0.0001178,2]
[352615351,1739201442731,-500.0,0.0001178,2]
[352615352,1739201442741,-500.0,0.0001178,2]
[352615353,1739201442750,-500.0,0.0001178,2]
[352615354,1739201442759,-1558.47,0.0001178,2]
[352615355,1739201442768,-500.0,0.0001178,2]
[352615356,1739201442777,-500.0,0.0001178,2]
[352615357,1739201442786,-500.0,0.0001178,2]
[352615358,1739201442796,-565.47,0.0001178,2]
[352615359,1739201442805,-500.0,0.0001178,2]
[352615360,1739201442814,-500.0,0.0001178,2]
[352615361,1739201442823,-500.0,0.0001178,2]
[352615363,1739201442833,-567.49,0.0001178,2]
[352615364,1739201442842,-899.18,0.0001178,2]
[352615366,1739201442851,-4405.22,0.0001178,2]
[352615367,1739201442860,-1121.87,0.0001178,2]
[352615368,1739201442869,-505.82,0.0001178,2]
[352615369,1739201442879,-550.84,0.0001178,2]
[352615370,1739201442888,-2625.37,0.0001178,2]
[352615371,1739201442897,-537.82,0.0001178,2]
[352615372,1739201442906,-1407.82,0.0001178,2]
[352615373,1739201442915,-500.0,0.0001178,2]
[352615374,1739201442925,-500.0,0.0001178,2]
[352615375,1739201442936,-500.0,0.0001178,2]
[352615376,1739201442946,-1316.6,0.0001178,2]
[352615377,1739201442956,-772.0,0.0001178,2]
[352615378,1739201442966,-500.0,0.0001178,2]
[352615379,1739201442975,-500.0,0.0001178,2]
[352615380,1739201442984,-500.0,0.0001178,2]
[352615381,1739201442994,-500.0,0.0001178,2]
[352615382,1739201443003,-500.0,0.0001178,2]
[352615383,1739201443012,-500.0,0.0001178,2]
[352615384,1739201443021,-957.85,0.0001178,2]
[352615385,1739201443031,-511.94639576,0.00011831,2]
[352615386,1739201443040,-500.0,0.00011831,2]
[352615387,1739201443049,-1000.0,0.00011867,2]
[352615388,1739201443059,-500.0,0.00011917,2]
[352615389,1739201443068,-504.24,0.00011917,2]
[352615390,1739201443077,-500.0,0.00011917,2]
[352615391,1739201443087,-500.0,0.00011917,2]
[352615392,1739201443095,-500.0,0.00011917,2]
[352615393,1739201443104,-632.7,0.00011917,2]
[352615394,1739201443114,-500.0,0.00011917,2]
[352615395,1739201443123,-500.0,0.00011917,2]
[352615396,1739201443133,-500.0,0.00011917,2]
[352615397,1739201443142,-500.0,0.00011917,2]
[352615398,1739201443152,-500.0,0.00011917,2]
[352615399,1739201443162,-10277.57,0.00011917,2]
[352615400,1739201443171,-596.20577899,0.00011917,2]
[352615401,1739201443184,-563.71,0.00011917,2]
[352615402,1739201443193,-512.3,0.00011917,2]
[352615404,1739201443203,-1738.59,0.00011917,2]
[352615406,1739201443211,-500.0,0.00011917,2]
[352615408,1739201443221,-235.65,0.00011917,2]
[352615410,1739201443230,-262.06,0.00011917,2]
[352615412,1739201443240,-4495.76,0.00011917,2]
[352615414,1739201443249,-1072.26,0.00011917,2]
[352615416,1739201443258,-500.0,0.00011917,2]
[352615417,1739201443267,-500.0,0.00011917,2]
[352615418,1739201443277,-500.0,0.00011917,2]
[352615419,1739201443286,-1558.47,0.00011917,2]
[352615420,1739201443295,-500.0,0.00011917,2]
[352615421,1739201443305,-500.0,0.00011917,2]
[352615422,1739201443314,-500.0,0.00011917,2]
[352615423,1739201443323,-565.47,0.00011917,2]
[352615424,1739201443333,-500.0,0.00011917,2]
[352615425,1739201443343,-500.0,0.00011917,2]
[352615426,1739201443352,-500.0,0.00011917,2]
[352615427,1739201443361,-567.49,0.00011917,2]
[352615428,1739201443371,-899.18,0.00011917,2]
[352615429,1739201443380,-4405.22,0.00011917,2]
[352615430,1739201443389,-1121.87,0.00011917,2]
[352615431,1739201443398,-505.82,0.00011917,2]
[352615432,1739201443407,-550.84,0.00011917,2]
[352615433,1739201443417,-2625.37,0.00011917,2]
[352615434,1739201443426,-537.82,0.00011917,2]
[352615435,1739201443437,-1407.82,0.00011917,2]
[352615436,1739201443446,-500.0,0.00011917,2]
[352615437,1739201443455,-500.0,0.00011917,2]
[352615438,1739201443465,-500.0,0.00011917,2]
[352615439,1739201443474,-1316.6,0.00011917,2]
[352615440,1739201443483,-772.0,0.00011917,2]
[352615441,1739201443493,-500.0,0.00011917,2]
[352615442,1739201443502,-500.0,0.00011917,2]
[352615443,1739201443511,-500.0,0.00011917,2]
[352615444,1739201443520,-515.49478869,0.00011917,2]
[352615445,1739201443531,-254.66862441,0.00011917,2]
[352615446,1739201443542,-957.85,0.00011917,2]
[352615447,1739201443551,-8798.92,0.00012,2]
[352615448,1739201443560,-240.0,0.00012041,2]
[352615449,1739201443570,-151.0,0.00012054,2]
[352615450,1739201443579,-151.0,0.00012054,2]
[352615451,1739201443588,-159.029961,0.00012054,2]
[352615452,1739201443598,-500.0,0.00012054,2]
[352615453,1739201443608,-504.24,0.00012054,2]
[352615454,1739201443618,-500.0,0.00012054,2]
[352615455,1739201443627,-622.71278937,0.00012054,2]
[352615456,1739201443636,-500.0,0.00012054,2]
[352615457,1739201443646,-632.7,0.00012054,2]
[352615458,1739201443655,-500.0,0.00012054,2]
[352615459,1739201443665,-500.0,0.00012054,2]
[352615460,1739201443674,-500.0,0.00012054,2]
[352615461,1739201443685,-500.0,0.00012054,2]
[352615462,1739201443694,-10277.57,0.00012054,2]
[352615463,1739201443703,-563.71,0.00012054,2]
[352615464,1739201443712,-512.3,0.00012054,2]
[352615465,1739201443721,-1738.59,0.00012054,2]
[352615466,1739201443731,-500.0,0.00012054,2]
[352615467,1739201443740,-4495.76,0.00012054,2]
[352615468,1739201443749,-1072.26,0.00012054,2]
[352615469,1739201443758,-500.0,0.00012054,2]
[352615470,1739201443767,-500.0,0.00012054,2]
[352615471,1739201443776,-500.0,0.00012054,2]
[352615472,1739201443785,-1558.47,0.00012054,2]
[352615473,1739201443794,-500.0,0.00012054,2]
[352615474,1739201443804,-500.0,0.00012054,2]
[352615475,1739201443813,-500.0,0.00012054,2]
[352615476,1739201443822,-565.47,0.00012054,2]
[352615477,1739201443831,-500.0,0.00012054,2]
[352615478,1739201443840,-500.0,0.00012054,2]
[352615479,1739201443932,-500.0,0.00012054,2]
[352615480,1739201443942,-567.49,0.00012054,2]
[352615481,1739201443951,-899.18,0.00012054,2]
[352615482,1739201443960,-4405.22,0.00012054,2]
[352615483,1739201443970,-1121.87,0.00012054,2]
[352615484,1739201443979,-505.82,0.00012054,2]
[352615485,1739201443990,-550.84,0.00012054,2]
[352615486,1739201443999,-2625.37,0.00012054,2]
[352615487,1739201444009,-537.82,0.00012054,2]
[352615488,1739201444018,-1407.82,0.00012054,2]
[352615489,1739201444027,-500.0,0.00012054,2]
[352615490,1739201444037,-500.0,0.00012054,2]
[352615491,1739201444046,-1316.6,0.00012054,2]
[352615492,1739201444056,-772.0,0.00012054,2]
[352615493,1739201444066,-500.0,0.00012054,2]
[352615494,1739201444075,-500.0,0.00012054,2]
[352615495,1739201444085,-500.0,0.00012054,2]
[352615496,1739201444094,-957.85,0.00012054,2]
[352615497,1739201444104,-1000.0,0.00012167,2]
[352615498,1739201444113,-151.0,0.00012191,2]
[352615499,1739201444123,-151.0,0.00012191,2]
[352615500,1739201444132,-216.852,0.00012191,2]
[352615501,1739201444142,-500.0,0.00012191,2]
[352615502,1739201444152,-504.24,0.00012191,2]
[352615503,1739201444161,-500.0,0.00012191,2]
[352615504,1739201444171,-500.0,0.00012191,2]
[352615505,1739201444180,-632.7,0.00012191,2]
[352615506,1739201444190,-500.0,0.00012191,2]
[352615507,1739201444199,-332.60822142,0.00012191,2]
[352615508,1739201444208,-489.98,0.00012191,2]
[352615509,1739201444218,-500.0,0.00012191,2]
[352615510,1739201444227,-10277.57,0.00012191,2]
[352615511,1739201444236,-563.71,0.00012191,2]
[352615512,1739201444245,-512.3,0.00012191,2]
[352615513,1739201444254,-1738.59,0.00012191,2]
[352615514,1739201444263,-500.0,0.00012191,2]
[352615515,1739201444273,-4495.76,0.00012191,2]
[352615516,1739201444282,-1072.26,0.00012191,2]
[352615517,1739201444291,-500.0,0.00012191,2]
[352615518,1739201444300,-500.0,0.00012191,2]
[352615519,1739201444310,-500.0,0.00012191,2]
[352615520,1739201444319,-1558.47,0.00012191,2]
[352615521,1739201444328,-500.0,0.00012191,2]
[352615522,1739201444339,-421.17,0.00012191,2]
[352615523,1739201444349,-500.0,0.00012191,2]
[352615524,1739201444359,-565.47,0.00012191,2]
[352615525,1739201444368,-357.74,0.00012191,2]
[352615526,1739201444378,-500.0,0.00012191,2]
[352615527,1739201444389,-500.0,0.00012191,2]
[352615528,1739201444399,-567.49,0.00012191,2]
[352615529,1739201444410,-899.18,0.00012191,2]
[352615530,1739201444421,-4405.22,0.00012191,2]
[352615531,1739201444433,-1121.87,0.00012191,2]
[352615532,1739201444444,-505.82,0.00012191,2]
[352615533,1739201444456,-550.84,0.00012191,2]
[352615534,1739201444467,-2625.37,0.00012191,2]
[352615535,1739201444477,-537.82,0.00012191,2]
[352615536,1739201444487,-1407.82,0.00012191,2]
[352615537,1739201444496,-500.0,0.00012191,2]
[352615538,1739201444506,-500.0,0.00012191,2]
[352615539,1739201444516,-1316.6,0.00012191,2]
[352615540,1739201444526,-772.0,0.00012191,2]
[352615541,1739201444540,-500.0,0.00012191,2]
[352615542,1739201444549,-500.0,0.00012191,2]
[352615543,1739201444559,-500.0,0.00012191,2]
[352615544,1739201444569,-957.85,0.00012191,2]
[352615545,1739201444579,-1000.0,0.00012306,2]
[352615546,1739201444589,-500.0,0.00012306,2]
[352615547,1739201444601,-500.0,0.00012328,2]
[352615548,1739201444611,-504.24,0.00012328,2]
[352615549,1739201444622,-500.0,0.00012328,2]
[352615550,1739201444631,-500.0,0.00012328,2]
[352615551,1739201444640,-632.7,0.00012328,2]
[352615552,1739201444650,-500.0,0.00012328,2]
[352615553,1739201444660,-500.0,0.00012328,2]
[352615554,1739201444670,-10277.57,0.00012328,2]
[352615555,1739201444681,-563.71,0.00012328,2]
[352615556,1739201444692,-512.3,0.00012328,2]
[352615557,1739201444702,-1738.59,0.00012328,2]
[352615558,1739201444711,-500.0,0.00012328,2]
[352615559,1739201444721,-4495.76,0.00012328,2]
[352615560,1739201444731,-1072.26,0.00012328,2]
[352615561,1739201444740,-500.0,0.00012328,2]
[352615562,1739201444750,-500.0,0.00012328,2]
[352615563,1739201444759,-500.0,0.00012328,2]
[352615564,1739201444768,-1558.47,0.00012328,2]
[352615565,1739201444778,-500.0,0.00012328,2]
[352615566,1739201444788,-500.0,0.00012328,2]
[352615567,1739201444797,-565.47,0.00012328,2]
[352615568,1739201444806,-500.0,0.00012328,2]
[352615569,1739201444816,-500.0,0.00012328,2]
[352615570,1739201444825,-567.49,0.00012328,2]
[352615571,1739201444834,-899.18,0.00012328,2]
[352615572,1739201444844,-4405.22,0.00012328,2]
[352615573,1739201444853,-1121.87,0.00012328,2]
[352615574,1739201444862,-505.82,0.00012328,2]
[352615575,1739201444872,-550.84,0.00012328,2]
[352615576,1739201444881,-2625.37,0.00012328,2]
[352615577,1739201444891,-537.82,0.00012328,2]
[352615578,1739201444900,-1407.82,0.00012328,2]
[352615579,1739201444910,-500.0,0.00012328,2]
[352615580,1739201444919,-500.0,0.00012328,2]
[352615581,1739201444928,-1316.6,0.00012328,2]
[352615582,1739201444940,-772.0,0.00012328,2]
[352615583,1739201444949,-528.76481335,0.00012328,2]
[352615584,1739201444958,-500.0,0.00012328,2]
[352615585,1739201444968,-500.0,0.00012328,2]
[352615586,1739201444982,-957.85,0.00012328,2]
[352615587,1739201444994,-153.701,0.0001236,2]
[352615588,1739201445007,-151.0,0.00012465,2]
[352615589,1739201445019,-151.0,0.00012465,2]
[352615590,1739201445030,-151.0,0.00012465,2]
[352615591,1739201445042,-500.0,0.00012465,2]
[352615592,1739201445054,-504.24,0.00012465,2]
[352615593,1739201445066,-500.0,0.00012465,2]
[352615594,1739201445079,-500.0,0.00012465,2]
[352615595,1739201445092,-632.7,0.00012465,2]
[352615596,1739201445103,-500.0,0.00012465,2]
[352615597,1739201445117,-500.0,0.00012465,2]
[352615598,1739201445130,-10277.57,0.00012465,2]
[352615599,1739201445141,-563.71,0.00012465,2]
[352615600,1739201445153,-512.3,0.00012465,2]
[352615601,1739201445165,-1738.59,0.00012465,2]
[352615602,1739201445177,-500.0,0.00012465,2]
[352615603,1739201445194,-4107.32035963,0.00012465,2]
[352615606,1739201445348,-388.43964037,0.00012465,2]
[352615607,1739201445359,-1072.26,0.00012465,2]
[352615608,1739201445370,-500.0,0.00012465,2]
[352615609,1739201445381,-500.0,0.00012465,2]
[352615610,1739201445395,-500.0,0.00012465,2]
[352615611,1739201445407,-1558.47,0.00012465,2]
[352615612,1739201445419,-500.0,0.00012465,2]
[352615613,1739201445431,-500.0,0.00012465,2]
[352615614,1739201445442,-565.47,0.00012465,2]
[352615615,1739201445454,-282.22,0.00012465,2]
[352615616,1739201445465,-500.0,0.00012465,2]
[352615617,1739201445477,-567.49,0.00012465,2]
[352615618,1739201445489,-899.18,0.00012465,2]
[352615619,1739201445500,-4405.22,0.00012465,2]
[352615621,1739201445511,-1121.87,0.00012465,2]
[352615623,1739201445522,-505.82,0.00012465,2]
[352615624,1739201445534,-550.84,0.00012465,2]
[352615625,1739201445547,-2625.37,0.00012465,2]
[352615626,1739201445558,-1407.82,0.00012465,2]
[352615627,1739201445569,-537.82,0.00012465,2]
[352615628,1739201445581,-500.0,0.00012465,2]
[352615629,1739201445592,-500.0,0.00012465,2]
[352615630,1739201445604,-1316.6,0.00012465,2]
[352615631,1739201445615,-772.0,0.00012465,2]
[352615632,1739201445626,-500.0,0.00012465,2]
[352615633,1739201445638,-500.0,0.00012465,2]
[352615634,1739201445649,-957.85,0.00012465,2]
[352615635,1739201445661,-625.89056432,0.000126,2]
[352615636,1739201445672,-500.0,0.00012602,2]
[352615637,1739201445685,-504.24,0.00012602,2]
[352615638,1739201445696,-500.0,0.00012602,2]
[352615639,1739201445707,-500.0,0.00012602,2]
[352615640,1739201445718,-632.7,0.00012602,2]
[352615641,1739201445730,-500.0,0.00012602,2]
[352615642,1739201445741,-500.0,0.00012602,2]
[352615643,1739201445752,-10277.57,0.00012602,2]
[352615644,1739201445763,-563.71,0.00012602,2]
[352615645,1739201445774,-512.3,0.00012602,2]
[352615647,1739201445784,-1738.59,0.00012602,2]
[352615648,1739201445794,-500.0,0.00012602,2]
[352615649,1739201445804,-4495.76,0.00012602,2]
[352615650,1739201445813,-1072.26,0.00012602,2]
[352615651,1739201445822,-500.0,0.00012602,2]
[352615652,1739201445831,-500.0,0.00012602,2]
[352615653,1739201445841,-500.0,0.00012602,2]
[352615654,1739201445850,-1558.47,0.00012602,2]
[352615655,1739201445860,-500.0,0.00012602,2]
[352615656,1739201445869,-500.0,0.00012602,2]
[352615657,1739201445878,-565.47,0.00012602,2]
[352615658,1739201445887,-500.0,0.00012602,2]
[352615659,1739201445897,-567.49,0.00012602,2]
[352615660,1739201445906,-899.18,0.00012602,2]
[352615661,1739201445915,-4405.22,0.00012602,2]
[352615662,1739201445924,-1121.87,0.00012602,2]
[352615664,1739201445936,-505.82,0.00012602,2]
[352615665,1739201445946,-550.84,0.00012602,2]
[352615666,1739201445955,-2625.37,0.00012602,2]
[352615667,1739201445964,-1407.82,0.00012602,2]
[352615668,1739201445974,-537.82,0.00012602,2]
[352615669,1739201445983,-500.0,0.00012602,2]
[352615670,1739201445992,-500.0,0.00012602,2]
[352615671,1739201446002,-1316.6,0.00012602,2]
[352615672,1739201446012,-772.0,0.00012602,2]
[352615673,1739201446021,-500.0,0.00012602,2]
[352615674,1739201446031,-500.0,0.00012602,2]
[352615676,1739201446186,-957.85,0.00012602,2]
[352615677,1739201446202,-151.0,0.00012739,2]
[352615678,1739201446213,-500.0,0.00012739,2]
[352615679,1739201446223,-504.24,0.00012739,2]
[352615680,1739201446232,-500.0,0.00012739,2]
[352615681,1739201446242,-500.0,0.00012739,2]
[352615682,1739201446252,-632.7,0.00012739,2]
[352615683,1739201446262,-500.0,0.00012739,2]
[352615684,1739201446272,-184.42,0.00012739,2]
[352615685,1739201446281,-10277.57,0.00012739,2]
[352615687,1739201446291,-563.71,0.00012739,2]
[352615689,1739201446301,-512.3,0.00012739,2]
[352615691,1739201446310,-1738.59,0.00012739,2]
[352615693,1739201446320,-500.0,0.00012739,2]
[352615694,1739201446330,-4495.76,0.00012739,2]
[352615695,1739201446339,-1072.26,0.00012739,2]
[352615696,1739201446349,-410.68910683,0.00012739,2]
[352615697,1739201446358,-500.0,0.00012739,2]
[352615698,1739201446368,-500.0,0.00012739,2]
[352615699,1739201446378,-1558.47,0.00012739,2]
[352615700,1739201446388,-500.0,0.00012739,2]
[352615701,1739201446397,-500.0,0.00012739,2]
[352615702,1739201446407,-565.47,0.00012739,2]
[352615703,1739201446417,-151.770735,0.00012739,2]
[352615704,1739201446426,-151.0,0.00012739,2]
[352615705,1739201446437,-151.0,0.00012739,2]
[352615706,1739201446446,-500.0,0.00012739,2]
[352615707,1739201446456,-567.49,0.00012739,2]
[352615708,1739201446466,-899.18,0.00012739,2]
[352615709,1739201446475,-4405.22,0.00012739,2]
[352615710,1739201446484,-352.044979,0.00012739,2]
[352615711,1739201446494,-151.0,0.00012739,2]
[352615712,1739201446503,-352.044979,0.00012739,2]
[352615713,1739201446512,-1121.87,0.00012739,2]
[352615714,1739201446522,-505.82,0.00012739,2]
[352615715,1739201446534,-550.84,0.00012739,2]
[352615716,1739201446543,-151.0,0.00012739,2]
[352615717,1739201446553,-2625.37,0.00012739,2]